bitfinex/quotes_BTCUSD_20251029
["timestamp","ask_amount","ask_price","bid_price","bid_amount"]
[1761741435580,0.19386269,113300.0,113280.0,0.17653938]
[1761741435848,2.0,113290.0,113280.0,0.19222938]
[1761741436075,2.0,113290.0,113280.0,0.18607938]
[1761741436304,2.0,113290.0,113280.0,0.22830625]
[1761741436519,2.0,113290.0,113280.0,0.27671908]
[1761741436768,2.0,113290.0,113280.0,0.30170908]
[1761741436985,2.0,113290.0,113280.0,0.27517221]
[1761741437169,2.0,113290.0,113280.0,0.27717221]
[1761741437453,2.0,113290.0,113280.0,0.27517221]
[1761741437693,2.0,113290.0,113280.0,0.22675938]
[1761741437919,2.0,113290.0,113280.0,0.23075938]
[1761741440531,2.0,113290.0,113280.0,0.60169031]
[1761741443048,0.17652341,113300.0,113290.0,0.17653808]
[1761741443049,2.0,113300.0,113290.0,0.17653808]
[1761741443277,2.5165225,113300.0,113290.0,0.22675808]
[1761741443772,2.34,113300.0,113290.0,0.22675808]
[1761741444023,2.34,113300.0,113290.0,0.29882594]
[1761741444241,2.5165225,113300.0,113290.0,0.29882594]
[1761741444460,2.5165225,113300.0,113290.0,0.29982594]
[1761741444903,2.5165225,113300.0,113290.0,0.22775808]
[1761741445340,2.5165225,113300.0,113290.0,0.22675808]
[1761741445559,2.5315325,113300.0,113290.0,0.20476808]
[1761741445789,2.5675525,113300.0,113290.0,0.003]
[1761741454379,0.17653808,113290.0,113280.0,0.21106938]
[1761741454596,0.19154808,113290.0,113280.0,0.22675938]
[1761741454814,0.19154808,113290.0,113280.0,0.02523]
[1761741455261,0.19154808,113290.0,113280.0,0.22677367]
[1761741455496,0.17653808,113290.0,113280.0,0.22677367]
[1761741455716,0.19154808,113290.0,113280.0,0.20178367]
[1761741455935,0.22756808,113290.0,113280.0,0.20478367]
[1761741456627,0.20318808,113290.0,113280.0,0.02823]
[1761741457038,0.20318808,113290.0,113280.0,0.20478367]
[1761741458092,0.22769808,113290.0,113280.0,0.02823]
[1761741458936,2.22769808,113290.0,113280.0,0.01254]
[1761741459141,2.22769808,113290.0,113280.0,0.02833]
[1761741462047,2.22769808,113290.0,113280.0,0.003]
[1761741462250,2.24676836,113290.0,113280.0,0.003]
[1761741464139,2.67658737,113290.0,113280.0,0.003]
[1761741465172,2.17655367,113280.0,113270.0,0.01204014]
[1761741465379,2.19252367,113280.0,113270.0,0.02783014]
[1761741466644,2.19252367,113280.0,113270.0,0.03083014]
[1761741466851,2.20455367,113280.0,113270.0,0.03083014]
[1761741467683,2.17655367,113280.0,113270.0,0.05415014]
[1761741470151,2.19252367,113280.0,113270.0,0.05415014]
[1761741472346,2.22906367,113280.0,113270.0,0.01504014]
[1761741472520,2.56906367,113280.0,113270.0,0.01504014]
[1761741473546,2.56906367,113280.0,113270.0,0.01204014]
[1761741473992,2.56906367,113280.0,113270.0,0.01304014]
[1761741474901,2.56906367,113280.0,113270.0,0.00166014]
[1761741474902,2.56885851,113280.0,113270.0,0.00166014]
[1761741477162,2.58791004,113280.0,113270.0,0.00166014]
[1761741478244,2.58791065,113280.0,113270.0,0.00166014]
[1761741478810,2.58791067,113280.0,113270.0,0.00166014]
[1761741479179,2.56885851,113280.0,113270.0,0.00166014]
[1761741480225,2.58791124,113280.0,113270.0,0.00166014]
[1761741481758,2.67773025,113280.0,113270.0,0.00166014]
[1761741481987,2.71391253,113280.0,113270.0,0.00166014]
[1761741483602,2.71391253,113280.0,113270.0,0.00066014]
[1761741484065,2.71491253,113280.0,113270.0,0.00066014]
[1761741484511,2.73872774,113280.0,113270.0,0.00066014]
[1761741484950,2.74699357,113280.0,113270.0,0.00066014]
[1761741485161,2.73872774,113280.0,113270.0,0.00066014]
[1761741496463,2.70254546,113280.0,113270.0,0.00066014]
[1761741497172,2.70254546,113280.0,113270.0,0.01586014]
[1761741497844,2.70254546,113280.0,113270.0,0.00066014]
[1761741500698,2.65003546,113280.0,113270.0,0.05058014]
[1761741501166,2.66564546,113280.0,113270.0,0.02712014]
[1761741501618,2.67693546,113280.0,113270.0,0.02712014]
[1761741503448,2.69976546,113280.0,113270.0,0.02712014]
[1761741505426,2.69976546,113280.0,113270.0,0.01192014]
[1761741506092,2.69976546,113280.0,113270.0,0.02712014]
[1761741506746,2.69976546,113280.0,113270.0,0.00066014]
[1761741506973,2.70803822,113280.0,113270.0,0.00066014]
[1761741507803,2.70806711,113280.0,113270.0,0.00066014]
[1761741509318,2.73981182,113280.0,113270.0,0.00066014]
[1761741513116,2.71698182,113280.0,113270.0,0.02712014]
[1761741513349,2.73981182,113280.0,113270.0,0.03322615]
[1761741513570,2.73981182,113280.0,113270.0,0.01802615]
[1761741514012,2.73981182,113280.0,113270.0,0.01192014]
[1761741514243,2.73981182,113280.0,113270.0,0.00066014]
[1761741514898,2.51156997,113280.0,113270.0,0.00066014]
[1761741515110,2.68812364,113280.0,113270.0,0.00066014]
[1761741525072,2.71986835,113280.0,113270.0,0.00066014]
[1761741526349,2.98470835,113280.0,113270.0,0.00066014]
[1761741527938,2.98470835,113280.0,113270.0,0.01705014]
[1761741531526,2.95296364,113280.0,113270.0,0.01705014]
[1761741533249,2.95296364,113280.0,113270.0,0.00066014]
[1761741533452,2.95296364,113280.0,113270.0,0.01705014]
[1761741533657,2.95296364,113280.0,113270.0,0.00066014]
[1761741535046,2.93013364,113280.0,113270.0,0.01705014]
[1761741535278,2.93013364,113280.0,113270.0,0.02843014]
[1761741538123,2.95479364,113280.0,113270.0,0.00066014]
[1761741538338,2.98653835,113280.0,113270.0,0.00066014]
[1761741538740,3.02272063,113280.0,113270.0,0.00066014]
[1761741542408,3.02272063,113280.0,113270.0,0.01705014]
[1761741542608,2.99806063,113280.0,113270.0,0.01705014]
[1761741542839,3.02272063,113280.0,113270.0,0.01705014]
[1761741543050,3.02272063,113280.0,113270.0,0.00066014]
[1761741549607,2.99806063,113280.0,113270.0,0.02722014]
[1761741550036,3.02300063,113280.0,113270.0,0.00066014]
[1761741556331,2.98681835,113280.0,113270.0,0.00066014]
[1761741556532,3.02300063,113280.0,113270.0,0.00066014]
[1761741557796,3.04954576,113280.0,113270.0,0.00066014]
[1761741558457,3.01336348,113280.0,113270.0,0.00066014]
[1761741558655,3.01336348,113280.0,113270.0,0.01584014]
[1761741558874,2.96152348,113280.0,113270.0,0.05201014]
[1761741559292,2.97772348,113280.0,113270.0,0.05201014]
[1761741559501,2.98942348,113280.0,113270.0,0.02722014]
[1761741559768,3.01436348,113280.0,113270.0,0.02722014]
[1761741560217,2.98781835,113280.0,113270.0,0.02722014]
[1761741560868,2.98784137,113280.0,113270.0,0.02722014]
[1761741567117,2.95609666,113280.0,113270.0,0.02722014]
[1761741569773,2.95609666,113280.0,113270.0,0.00066014]
[1761741569991,2.98784924,113280.0,113270.0,0.00066014]
[1761741570900,3.05057498,113280.0,113270.0,0.00066014]
[1761741573244,3.05057498,113280.0,113270.0,0.00066014]
[1761741582453,3.0143927,113280.0,113270.0,0.00066014]
[1761741584249,3.0120127,113280.0,113270.0,0.02765014]
[1761741584465,3.0120127,113280.0,113270.0,0.01114014]
[1761741584914,2.96290924,113280.0,113270.0,0.02765014]
[1761741585123,2.93116453,113280.0,113270.0,0.02765014]
[1761741585958,2.95372453,113280.0,113270.0,0.02765014]
[1761741587289,2.93116453,113280.0,113270.0,0.02765014]
[1761741588844,2.95372453,113280.0,113270.0,0.02765014]
[1761741590525,2.9454439,113280.0,113270.0,0.02765014]
[1761741592834,2.28861122,113280.0,113270.0,0.23640682]
[1761741593016,2.26476686,113280.0,113270.0,0.60751636]
[1761741593223,2.26476686,113280.0,113270.0,0.26294606]
[1761741593408,0.26584,113280.0,113270.0,0.26294606]
[1761741594829,0.26584,113280.0,113270.0,0.6340556]
[1761741595034,0.26484,113280.0,113270.0,0.6340556]
[1761741595475,0.26484,113280.0,113270.0,0.6370556]
[1761741596294,0.26484,113280.0,113270.0,0.62816817]
[1761741596513,0.26484,113280.0,113270.0,0.25705863]
[1761741604256,0.065476,113280.0,113270.0,0.25705863]
[1761741610927,0.065476,113280.0,113270.0,0.23051939]
[1761741613304,0.065476,113280.0,113270.0,0.22799939]
[1761741613506,0.065476,113280.0,113270.0,0.3093328]
[1761741617732,0.065476,113280.0,113270.0,0.39915181]
[1761741621765,0.065476,113280.0,113270.0,0.76998428]
[1761741622397,0.065476,113280.0,113270.0,0.39915181]
[1761741622612,0.065476,113280.0,113270.0,0.3178184]
[1761741624081,0.065476,113280.0,113270.0,0.22799939]
[1761741644179,0.24202967,113280.0,113270.0,0.22799939]
[1761741644862,2.24202967,113280.0,113270.0,0.05143014]
[1761741645260,2.26859967,113280.0,113270.0,0.02813014]
[1761741645460,2.29343967,113280.0,113270.0,0.02813014]
[1761741646338,2.31252343,113280.0,113270.0,0.02813014]
[1761741646539,2.28768343,113280.0,113270.0,0.02813014]
[1761741646953,2.26859967,113280.0,113270.0,0.02813014]
[1761741647573,2.25332967,113280.0,113270.0,0.05295014]
[1761741648527,2.065476,113280.0,113270.0,0.25361087]
[1761741648755,2.24202967,113280.0,113270.0,0.25361087]
[1761741651309,2.24202967,113280.0,113270.0,0.22951939]
[1761741651743,2.24202967,113280.0,113270.0,0.22747939]
[1761741653276,0.24202967,113280.0,113270.0,0.22747939]
[1761741657602,0.065476,113280.0,113270.0,0.22747939]
[1761741659751,0.24202967,113280.0,113270.0,0.22747939]
[1761741661947,0.065476,113280.0,113270.0,0.22747939]
[1761741668105,0.065476,113280.0,113270.0,0.59839338]
[1761741668309,0.065476,113280.0,113270.0,0.75768407]
[1761741669814,0.065476,113280.0,113270.0,0.68821239]
[1761741670494,0.20441767,113300.0,113290.0,0.20249808]
[1761741670495,2.53559155,113300.0,113290.0,0.20249808]
[1761741670916,2.53559155,113300.0,113290.0,0.22558808]
[1761741672228,2.53559155,113300.0,113290.0,0.22658808]
[1761741673632,2.53559155,113300.0,113290.0,0.05005]
[1761741674885,2.53559155,113300.0,113290.0,0.25019997]
[1761741675092,2.53559155,113300.0,113290.0,0.05005]
[1761741676931,2.53559155,113300.0,113290.0,0.22658808]
[1761741679780,0.01906905,113300.0,113290.0,0.96841606]
[1761741679982,2.02815616,113320.0,113310.0,0.17650692]
[1761741680189,2.02815616,113320.0,113310.0,0.23733986]
[1761741680423,2.02815616,113320.0,113310.0,0.26059986]
[1761741680644,2.36815616,113320.0,113310.0,0.22529692]
[1761741680854,2.54464751,113320.0,113310.0,0.22529692]
[1761741681063,2.20464751,113320.0,113310.0,0.22529692]
[1761741681235,2.20513042,113320.0,113310.0,0.22529692]
[1761741681491,2.52606879,113320.0,113310.0,0.22529692]
[1761741681904,2.52606879,113320.0,113310.0,0.04879]
[1761741682089,2.52606879,113320.0,113310.0,0.22529692]
[1761741682513,2.52706879,113320.0,113310.0,0.22529692]
[1761741685251,2.52706879,113320.0,113310.0,0.04879]
[1761741685804,2.54364879,113320.0,113310.0,0.02553]
[1761741688835,2.55605879,113320.0,113310.0,0.02553]
[1761741689052,2.58024879,113320.0,113310.0,0.02553]
[1761741689436,2.55605879,113320.0,113310.0,0.02553]
[1761741691415,2.35897354,113320.0,113310.0,0.02553]
[1761741691672,2.54696426,113320.0,113310.0,0.20203692]
[1761741692188,2.53038426,113320.0,113310.0,0.22603692]
[1761741692401,2.51797426,113320.0,113310.0,0.22603692]
[1761741694222,2.51797426,113320.0,113310.0,0.04953]
[1761741694773,2.51797426,113320.0,113310.0,0.22603692]
[1761741694975,2.52701857,113320.0,113310.0,0.22603692]
[1761741696424,2.52701857,113320.0,113310.0,0.04953]
[1761741696889,2.55600857,113320.0,113310.0,0.02553]
[1761741697098,0.17650692,113310.0,113300.0,0.20987216]
[1761741697301,0.19170692,113310.0,113300.0,0.22651367]
[1761741697429,0.19170692,113310.0,113300.0,0.20251367]
[1761741697830,2.22652692,113310.0,113300.0,0.02599117]
[1761741698072,2.22652692,113310.0,113300.0,0.20251367]
[1761741699857,2.20391692,113310.0,113300.0,0.20251367]
[1761741701298,2.20391692,113310.0,113300.0,0.22675367]
[1761741702140,2.20391692,113310.0,113300.0,0.20251367]
[1761741702340,2.22652692,113310.0,113300.0,0.20251367]
[1761741702887,2.20391692,113310.0,113300.0,0.20251367]
[1761741703705,2.20391692,113310.0,113300.0,0.22675367]
[1761741704356,2.01221,113310.0,113300.0,0.22675367]
[1761741704557,2.37606087,113320.0,113310.0,0.17650692]
[1761741704807,2.00952722,113320.0,113310.0,0.59728091]
[1761741705363,2.00952722,113320.0,113310.0,0.22636692]
[1761741705974,2.01052722,113320.0,113310.0,0.22636692]
[1761741706777,0.01052722,113320.0,113310.0,0.22636692]
[1761741708815,0.00952722,113320.0,113310.0,0.22636692]
[1761741709618,0.00952722,113320.0,113310.0,0.30939444]
[1761741709825,0.00952722,113320.0,113310.0,0.22636692]
[1761741711687,0.00048291,113320.0,113310.0,0.59728091]
[1761741711888,0.00048291,113320.0,113310.0,0.22636692]
[1761741712092,0.00048291,113320.0,113310.0,0.59728091]
[1761741714731,0.00872157,113330.0,113320.0,0.17649135]
[1761741714932,0.18524559,113330.0,113320.0,0.30427858]
[1761741715087,0.17652402,113330.0,113320.0,0.02617]
[1761741715292,2.17652402,113330.0,113320.0,0.02617]
[1761741715528,2.19559261,113330.0,113320.0,0.20266135]
[1761741716047,2.19559261,113330.0,113320.0,0.22690135]
[1761741716384,2.17652402,113330.0,113320.0,0.22690135]
[1761741717215,2.19559024,113330.0,113320.0,0.05041]
[1761741717415,2.17652402,113330.0,113320.0,0.05041]
[1761741717815,2.17652402,113330.0,113320.0,0.22690135]
[1761741719030,0.17652402,113330.0,113320.0,0.22690135]
[1761741723977,4.825e-05,113330.0,113320.0,0.22690135]
[1761741726072,4.825e-05,113330.0,113320.0,0.22530135]
[1761741727432,4.825e-05,113330.0,113320.0,0.22730135]
[1761741728270,4.825e-05,113330.0,113320.0,0.71427412]
[1761741728688,4.825e-05,113330.0,113320.0,0.34364683]
[1761741728892,4.825e-05,113330.0,113320.0,0.71527412]
[1761741729097,4.825e-05,113330.0,113320.0,0.80509313]
[1761741730967,4.825e-05,113330.0,113320.0,1.15509312]
[1761741733385,4.825e-05,113330.0,113320.0,0.77446584]
[1761741733606,4.825e-05,113330.0,113320.0,1.14509313]
[1761741734019,4.825e-05,113330.0,113320.0,1.15509312]
[1761741735014,4.825e-05,113330.0,113320.0,1.06527411]
[1761741735439,4.825e-05,113330.0,113320.0,1.05527412]
[1761741736222,4.825e-05,113330.0,113320.0,1.06527411]
[1761741755280,4.825e-05,113330.0,113320.0,1.11275086]
[1761741764875,4.825e-05,113330.0,113320.0,1.10275087]
[1761741766587,4.825e-05,113330.0,113320.0,1.19256988]
[1761741772902,4.825e-05,113330.0,113320.0,0.82194259]
[1761741773031,4.825e-05,113330.0,113320.0,1.19256988]
[1761741773243,4.825e-05,113330.0,113320.0,1.10275087]
[1761741775351,4.825e-05,113330.0,113320.0,1.0762244]
[1761741778676,0.17652402,113330.0,113320.0,0.05181]
[1761741778897,0.19296402,113330.0,113320.0,0.02757]
[1761741779760,0.20542402,113330.0,113320.0,0.02757]
[1761741779975,0.23013402,113330.0,113320.0,0.02757]
[1761741783842,0.23013402,113330.0,113320.0,0.003]
[1761741784063,0.31995303,113330.0,113320.0,0.003]
[1761741784524,0.65995303,113330.0,113320.0,0.003]
[1761741784761,0.67899151,113330.0,113320.0,0.003]
[1761741785009,2.91517379,113330.0,113320.0,0.003]
[1761741785695,2.94170718,113330.0,113320.0,0.003]
[1761741787294,2.9226687,113330.0,113320.0,0.003]
[1761741788199,2.9226687,113330.0,113320.0,0.00172]
[1761741788660,2.9416652,113330.0,113320.0,0.00172]
[1761741789325,2.9226687,113330.0,113320.0,0.00172]
[1761741791212,2.9226687,113330.0,113320.0,0.00072]
[1761741791644,0.17650692,113310.0,113300.0,0.00935117]
[1761741791857,0.19193692,113310.0,113300.0,0.02483117]
[1761741792562,0.20336692,113310.0,113300.0,0.02483117]
[1761741793192,0.17650692,113310.0,113300.0,0.04947117]
[1761741796457,0.19193692,113310.0,113300.0,0.04947117]
[1761741797411,0.19193692,113310.0,113300.0,0.22599367]
[1761741797825,0.17650692,113310.0,113300.0,0.22599367]
[1761741798884,0.18793537,113320.0,113300.0,0.22599367]
[1761741799101,0.17650537,113320.0,113310.0,0.0491]
[1761741799302,0.17650537,113320.0,113310.0,0.22560692]
[1761741800401,0.17850537,113320.0,113310.0,0.22560692]
[1761741805583,0.17849135,113320.0,113310.0,0.22560692]
[1761741813805,0.20535135,113320.0,113310.0,0.20096692]
[1761741814235,0.18992135,113320.0,113310.0,0.20096692]
[1761741814443,0.17849135,113320.0,113310.0,0.22560692]
[1761741816859,0.002,113320.0,113310.0,0.22560692]
[1761741817290,0.002,113320.0,113310.0,0.59623439]
[1761741818043,0.17849135,113320.0,113310.0,0.59623439]
[1761741818254,0.17849135,113320.0,113310.0,0.22560692]
[1761741820425,0.002,113320.0,113310.0,0.22560692]
[1761741820646,0.002,113320.0,113310.0,0.59623439]
[1761741822053,0.002,113320.0,113310.0,0.63597592]
[1761741823231,0.17652544,113330.0,113320.0,0.17649135]
[1761741823427,0.17652544,113330.0,113320.0,0.59403882]
[1761741823631,4.825e-05,113330.0,113320.0,0.59403882]
[1761741826474,0.00204825,113330.0,113320.0,0.59403882]
[1761741829402,0.00204825,113330.0,113320.0,0.67596555]
[1761741830584,0.00204825,113330.0,113320.0,1.13641203]
[1761741830942,0.20432674,113350.0,113340.0,0.2012602]
[1761741830943,2.17647082,113350.0,113340.0,0.2012602]
[1761741831156,0.52525102,113360.0,113350.0,0.17644464]
[1761741831363,2.17642907,113360.0,113350.0,0.22441464]
[1761741831571,0.17642907,113360.0,113350.0,0.22441464]
[1761741833222,0.17642907,113360.0,113350.0,0.30249087]
[1761741833430,0.17647735,113360.0,113350.0,0.30249087]
[1761741834035,0.17947735,113360.0,113350.0,0.22441464]
[1761741836220,0.00304828,113360.0,113350.0,0.22441464]
[1761741836863,0.00347144,113360.0,113350.0,0.22441464]
[1761741837489,0.17990051,113360.0,113350.0,0.22441464]
[1761741838705,0.00347144,113360.0,113350.0,0.22441464]
[1761741839944,0.00047144,113360.0,113350.0,0.22441464]
[1761741840365,0.00147144,113360.0,113350.0,0.76293735]
[1761741840585,0.00047144,113360.0,113350.0,0.76293735]
[1761741840792,0.00047144,113360.0,113350.0,0.39230988]
[1761741841001,0.00047144,113360.0,113350.0,0.76493735]
[1761741841633,0.00047144,113360.0,113350.0,0.76393735]
[1761741841870,0.00047144,113360.0,113350.0,0.76293735]
[1761741842063,0.00047144,113360.0,113350.0,0.39330988]
[1761741842281,0.00047144,113360.0,113350.0,0.76393735]
[1761741843561,0.00047144,113360.0,113350.0,0.76693735]
[1761741845291,0.00047144,113360.0,113350.0,0.39630988]
[1761741848330,0.00047144,113360.0,113350.0,0.7666114]
[1761741849614,0.00047144,113360.0,113350.0,0.39630988]
[1761741849825,0.00047144,113360.0,113350.0,0.7666114]
[1761741850451,0.00047144,113360.0,113350.0,0.39630988]
[1761741850663,0.00047144,113360.0,113350.0,0.7666114]
[1761741850882,0.00047144,113360.0,113350.0,0.39630988]
[1761741851992,0.00047144,113360.0,113350.0,0.7666114]
[1761741852151,0.00047144,113360.0,113350.0,0.39630988]
[1761741852349,0.00047144,113360.0,113350.0,0.7666114]
[1761741852967,0.00047144,113360.0,113350.0,0.68853517]
[1761741854234,0.00047144,113360.0,113350.0,0.31823365]
[1761741859395,0.17690051,113360.0,113350.0,0.31823365]
[1761741860424,0.17690051,113360.0,113350.0,0.31719365]
[1761741863627,0.00047144,113360.0,113350.0,0.31719365]
[1761741864541,0.00047144,113360.0,113350.0,0.40701266]
[1761741864726,0.00047144,113360.0,113350.0,0.77731418]
[1761741867089,0.00047144,113360.0,113350.0,0.68749517]
[1761741869808,0.00047144,113360.0,113350.0,0.31719365]
[1761741870446,0.00047144,113360.0,113350.0,0.68749517]
[1761741877904,0.00047144,113360.0,113350.0,0.31719365]
[1761741879870,0.17690051,113360.0,113350.0,0.22737464]
[1761741881533,0.00047144,113360.0,113350.0,0.22737464]
[1761741882983,0.17690051,113360.0,113350.0,0.22737464]
[1761741886401,0.17690051,113360.0,113350.0,0.22437464]
[1761741886764,0.17690051,113360.0,113350.0,0.22337464]
[1761741887834,0.20355051,113360.0,113350.0,0.19992464]
[1761741888050,0.17690051,113360.0,113350.0,0.22724464]
[1761741888500,0.17690051,113360.0,113350.0,0.22824464]
[1761741892387,0.00047144,113360.0,113350.0,0.23879354]
[1761741893027,0.00047144,113360.0,113350.0,0.22824464]
[1761741895016,0.22688051,113360.0,113350.0,0.005]
[1761741895481,3.22688051,113360.0,113350.0,0.005]
[1761741895716,3.88403991,113360.0,113350.0,0.005]
[1761741895943,3.9105653,113360.0,113350.0,0.005]
[1761741896657,3.9105653,113360.0,113350.0,0.004]
[1761741897127,3.9105653,113360.0,113350.0,0.005]
[1761741897811,3.9105653,113360.0,113350.0,0.001]
[1761741898030,3.91055838,113360.0,113350.0,0.01624]
[1761741898245,3.90329061,113360.0,113350.0,0.02418]
[1761741898476,3.90329061,113360.0,113350.0,0.02318]
[1761741898913,3.90329061,113360.0,113350.0,0.02418]
[1761741899363,3.88422491,113360.0,113350.0,0.00894]
[1761741900242,3.5444259,113360.0,113350.0,0.20062464]
[1761741900470,0.51790051,113360.0,113350.0,0.22394464]
[1761741900957,0.00147144,113360.0,113350.0,0.22394464]
[1761741901185,0.17790051,113360.0,113350.0,0.22394464]
[1761741902295,0.17790051,113360.0,113350.0,0.0475]
[1761741902558,0.17790051,113360.0,113350.0,0.22394464]
[1761741903667,0.17790051,113360.0,113350.0,0.0475]
[1761741904318,0.17790051,113360.0,113350.0,0.22394464]
[1761741907226,0.17790051,113360.0,113350.0,0.22394464]
[1761741914143,0.00147144,113360.0,113350.0,0.22394464]
[1761741914829,0.00147144,113360.0,113350.0,0.59435621]
[1761741915296,0.00147144,113360.0,113350.0,0.68417522]
[1761741916276,0.00147144,113360.0,113350.0,0.59435621]
[1761741918929,0.00147144,113360.0,113350.0,0.22394464]
[1761741919371,0.00147144,113360.0,113350.0,0.59435621]
[1761741922324,0.22965051,113360.0,113350.0,0.20062464]
[1761741922543,0.20634051,113360.0,113350.0,0.20062464]
[1761741925763,0.20634051,113360.0,113350.0,0.19978464]
[1761741927266,0.20634051,113360.0,113350.0,0.22472464]
[1761741927729,3.85946952,113360.0,113350.0,0.001]
[1761741927950,3.87853238,113360.0,113350.0,0.001]
[1761741928234,3.88680625,113360.0,113350.0,0.001]
[1761741932916,3.87853238,113360.0,113350.0,0.001]
[1761741934580,3.67857252,113360.0,113350.0,0.001]
[1761741934813,3.85799808,113360.0,113350.0,0.001]
[1761741935061,3.92151242,113360.0,113350.0,0.001]
[1761741936183,3.93805678,113360.0,113350.0,0.001]
[1761741937471,3.96458431,113360.0,113350.0,0.001]
[1761741940699,3.94803995,113360.0,113350.0,0.001]
[1761741942406,3.96456659,113360.0,113350.0,0.001]
[1761741943274,3.94803995,113360.0,113350.0,0.001]
[1761741947680,3.92151242,113360.0,113350.0,0.001]
[1761741948495,3.93803607,113360.0,113350.0,0.001]
[1761741949465,3.91897661,113360.0,113350.0,0.001]
[1761741949675,3.93801311,113360.0,113350.0,0.001]
[1761741951128,3.96180874,113360.0,113350.0,0.001]
[1761741951344,3.93801311,113360.0,113350.0,0.001]
[1761741952217,3.96180874,113360.0,113350.0,0.001]
[1761741952599,3.93801311,113360.0,113350.0,0.001]
[1761741953193,3.96180874,113360.0,113350.0,0.001]
[1761741957133,3.42010838,113360.0,113350.0,0.02534]
[1761741957346,0.0273091,113360.0,113350.0,0.28405182]
[1761741957563,0.17642907,113360.0,113350.0,0.22566464]
[1761741957742,3.0,113360.0,113350.0,0.22566464]
[1761741959260,0.19262907,113360.0,113350.0,0.22566464]
[1761741960919,3.0,113360.0,113350.0,0.22566464]
[1761741963800,0.17642907,113360.0,113350.0,0.22566464]
[1761741964375,3.0,113360.0,113350.0,0.22566464]
[1761741969287,0.17642907,113360.0,113350.0,0.22566464]
[1761741970452,0.22729907,113360.0,113350.0,0.001]
[1761741970670,0.22729907,113360.0,113340.0,0.1881202]
[1761741971116,0.22729907,113360.0,113350.0,0.17944464]
[1761741971522,0.22729907,113360.0,113350.0,0.003]
[1761741971739,3.22729907,113360.0,113350.0,0.003]
[1761741971955,3.22729907,113360.0,113350.0,0.17944464]
[1761741972363,3.22729907,113360.0,113350.0,0.17644464]
[1761741973004,3.0,113350.0,113340.0,0.2135702]
[1761741973454,0.0166,113350.0,113340.0,0.2280002]
[1761741973660,3.21086907,113360.0,113350.0,0.001]
[1761741973885,3.21086907,113360.0,113350.0,0.17744464]
[1761741974153,3.22746907,113360.0,113350.0,0.17644464]
[1761741974768,3.0,113350.0,113340.0,0.2155702]
[1761741974979,3.0,113350.0,113340.0,0.2125702]
[1761741975182,3.0,113350.0,113340.0,0.2280002]
[1761741975705,3.0,113350.0,113340.0,0.2290002]
[1761741976397,0.0166,113350.0,113340.0,0.2290002]
[1761741977028,0.01641254,113350.0,113340.0,0.2290002]
[1761741977475,0.01641254,113350.0,113340.0,0.2045502]
[1761741977702,0.05047254,113350.0,113340.0,0.1891202]
[1761741977905,0.02768254,113350.0,113340.0,0.2045502]
[1761741978324,0.02768254,113350.0,113340.0,0.2075502]
[1761741978551,0.20412718,113350.0,113340.0,0.2075502]
[1761741979437,0.22691718,113350.0,113340.0,0.2075502]
[1761741981014,0.22691718,113350.0,113340.0,0.1921202]
[1761741981255,0.22691718,113350.0,113340.0,0.2075502]
[1761741981967,0.22691718,113350.0,113340.0,0.1921202]
[1761741982209,0.22691718,113350.0,113340.0,0.004]
[1761741985013,3.22691718,113350.0,113340.0,0.004]
[1761741985881,3.22691718,113350.0,113340.0,0.01943]
[1761741987227,3.22691718,113350.0,113340.0,0.004]
[1761741990120,3.22759718,113350.0,113340.0,0.004]
[1761741992097,3.31741619,113350.0,113340.0,0.004]
[1761741992563,3.67645872,113350.0,113340.0,0.004]
[1761741999559,3.68471679,113350.0,113340.0,0.004]
[1761741999948,3.72089907,113350.0,113340.0,0.004]
[1761742000111,3.79294112,113350.0,113340.0,0.004]
[1761742000310,3.76914549,113350.0,113340.0,0.004]
[1761742000533,3.79567839,113350.0,113340.0,0.004]
[1761742001355,3.79567839,113350.0,113340.0,0.003]
[1761742001558,3.61264248,113340.0,113330.0,0.00100603]
[1761742001796,3.82902499,113340.0,113330.0,0.00100603]
[1761742002817,3.85555789,113340.0,113330.0,0.00100603]
[1761742004115,3.85555789,113340.0,113330.0,1e-08]
[1761742004116,4.22729156,113340.0,113330.0,1e-08]
[1761742004342,4.31452392,113340.0,113330.0,1e-08]
[1761742005021,4.28279025,113340.0,113330.0,1e-08]
[1761742005466,4.28779025,113340.0,113330.0,1e-08]
[1761742005674,4.35438132,113340.0,113330.0,1e-08]
[1761742006093,4.32876503,113340.0,113330.0,1e-08]
[1761742006739,4.59346503,113340.0,113330.0,1e-08]
[1761742006972,4.60346502,113340.0,113330.0,1e-08]
[1761742007181,4.54586452,113340.0,113330.0,1e-08]
[1761742007409,4.60324447,113340.0,113330.0,1e-08]
[1761742007623,4.60424447,113340.0,113330.0,1e-08]
[1761742008506,4.59424448,113340.0,113330.0,1e-08]
[1761742008714,4.60424447,113340.0,113330.0,1e-08]
[1761742010671,4.61808459,113340.0,113330.0,1e-08]
[1761742012430,4.64270088,113340.0,113330.0,1e-08]
[1761742014260,4.63270089,113340.0,113330.0,1e-08]
[1761742014463,4.64270088,113340.0,113330.0,1e-08]
[1761742015282,4.59532092,113340.0,113330.0,1e-08]
[1761742015501,4.58532093,113340.0,113330.0,1e-08]
[1761742015717,4.59532092,113340.0,113330.0,1e-08]
[1761742015921,4.57070463,113340.0,113330.0,1e-08]
[1761742016744,4.55220464,113340.0,113330.0,1e-08]
[1761742016971,4.57604457,113340.0,113330.0,1e-08]
[1761742018109,4.57592519,113340.0,113330.0,1e-08]
[1761742018327,4.5659252,113340.0,113330.0,1e-08]
[1761742018543,4.57592519,113340.0,113330.0,1e-08]
[1761742019401,4.63939254,113340.0,113330.0,1e-08]
[1761742021355,0.17655367,113280.0,113270.0,0.24434307]
[1761742021776,0.17655367,113280.0,113270.0,0.25951307]
[1761742022645,0.17655367,113280.0,113270.0,0.25999598]
[1761742023081,0.17655367,113280.0,113270.0,0.26499598]
[1761742023365,0.20944226,113290.0,113270.0,0.26499598]
[1761742023582,0.20077226,113290.0,113280.0,0.0231]
[1761742024668,0.22472226,113290.0,113280.0,0.0231]
[1761742025088,0.22472226,113290.0,113280.0,0.00793]
[1761742025303,0.22472226,113290.0,113280.0,0.00893]
[1761742025735,0.22472226,113290.0,113280.0,0.0241]
[1761742025961,0.20077226,113290.0,113280.0,0.0241]
[1761742026808,0.22472226,113290.0,113280.0,0.0271]
[1761742027874,0.20077226,113290.0,113280.0,0.0271]
[1761742028501,0.20077226,113290.0,113280.0,0.02815879]
[1761742030824,0.22451226,113290.0,113280.0,0.02815879]
[1761742031050,0.24348948,113290.0,113280.0,0.00505879]
[1761742031258,0.25999732,113290.0,113280.0,0.03159775]
[1761742032275,0.26825538,113290.0,113280.0,0.03159775]
[1761742032925,0.25999732,113290.0,113280.0,0.03159775]
[1761742033343,0.26826028,113290.0,113280.0,0.03159775]
[1761742034191,0.29192663,113290.0,113280.0,0.03159775]